fUSD/lending_fUSD_20260305
["ID","MTS","AMOUNT","RATE_DAILY","PERIOD"]
[407706495,1772697029855,9808.19,0.000169,2]
[407706496,1772697029883,10000.01,0.000169,2]
[407706497,1772697029908,10000.01,0.000169,2]
[407706498,1772697029933,10000.01,0.000169,2]
[407706499,1772697029959,10000.01,0.000169,2]
[407706500,1772697029986,10000.01,0.000169,2]
[407706501,1772697030011,10000.01,0.000169,2]
[407706502,1772697030037,10000.01,0.000169,2]
[407706503,1772697030064,10000.01,0.000169,2]
[407706504,1772697030088,10000.01,0.000169,2]
[407706505,1772697030114,1052.03707421,0.000169,2]
[407706512,1772697031654,-456497.90309745,0.000169,2]
[407706513,1772697031665,-72560.76804482,0.000169,2]
[407706514,1772697031677,-197586.66656058,0.000169,2]
[407706515,1772697031688,-136834.96131847,0.000169,2]
[407706516,1772697031701,-1254.41808677,0.000169,2]
[407706517,1772697031820,-5707.44945277,0.000169,2]
[407706519,1772697031831,-2831.30578171,0.000169,2]
[407706521,1772697033850,-7120.19723778,0.000169,2]
[407706522,1772697034532,-274.20681043,0.00016899,2]
[407706523,1772697034561,-500.0,0.00016899,2]
[407706524,1772697034589,-150.92366714,0.00016899,2]
[407706525,1772697034618,-450.0,0.00016899,2]
[407706526,1772697034650,-500.0,0.00016899,2]
[407706527,1772697035016,-181.10470298,0.00016899,2]
[407706528,1772697037446,-2863.64776021,0.000169,2]
[407706531,1772697037719,-5000.01,0.000169,2]
[407706532,1772697037754,-5000.01,0.000169,2]
[407706533,1772697037771,-13045.90014582,0.000169,2]
[407706534,1772697037792,-1442836.34543941,0.000169,2]
[407706535,1772697037802,-220315.8474108,0.00017,2]
[407706536,1772697037812,-1604.35937099,0.00017,2]
[407706537,1772697037822,-250.0,0.00017001,2]
[407706538,1772697037833,-2500.0,0.00017002,2]
[407706539,1772697037843,-250.0,0.00017004,2]
[407706540,1772697037854,-196.05,0.00017007,2]
[407706541,1772697037865,-1000.0,0.00017011,2]
[407706542,1772697037875,-1802.5323709,0.00017013,2]
[407706543,1772697037885,-169.25,0.0001706,2]
[407706544,1772697037895,-169.25,0.0001733,2]
[407706545,1772697037905,-196.05,0.00017467,2]
[407706546,1772697037916,-2449.52224787,0.000175,2]
[407706547,1772697037926,-280.05746804,0.000175,2]
[407706548,1772697037936,-180.0,0.000175,2]
[407706549,1772697037946,-212.08045526,0.000175,2]
[407706550,1772697037957,-169.25,0.000176,2]
[407706551,1772697037968,-2069.28898595,0.0001779,2]
[407706552,1772697037978,-169.25,0.0001787,2]
[407706553,1772697037989,-1706.57,0.00017879,2]
[407706554,1772697037999,-151.0,0.00017879,2]
[407706555,1772697038009,-151.0,0.00017879,2]
[407706557,1772697038019,-151.0,0.00017879,2]
[407706559,1772697038028,-151.0,0.00017879,2]
[407706561,1772697038037,-151.0,0.00017879,2]
[407706563,1772697038047,-151.0,0.00017879,2]
[407706565,1772697038056,-151.0,0.00017879,2]
[407706567,1772697038065,-151.0,0.00017879,2]
[407706569,1772697038075,-151.0,0.00017879,2]
[407706572,1772697038084,-151.0,0.00017879,2]
[407706575,1772697038094,-151.0,0.00017879,2]
[407706578,1772697038103,-1706.57,0.0001788,2]
[407706581,1772697038112,-1706.57,0.0001788,2]
[407706584,1772697038122,-1706.57,0.0001788,2]
[407706587,1772697038132,-1706.57,0.0001788,2]
[407706590,1772697038142,-577.061874,0.0001788,2]
[407706593,1772697038152,-500.0,0.00017888,2]
[407706596,1772697038161,-500.0,0.00017888,2]
[407706599,1772697038171,-500.0,0.00017888,2]
[407706601,1772697038181,-500.0,0.00017888,2]
[407706603,1772697038190,-155.0,0.00017888,2]
[407706605,1772697038200,-637.51,0.00017888,2]
[407706607,1772697038214,-502.72289729,0.00017888,2]
[407706609,1772697038223,-500.0,0.00017888,2]
[407706611,1772697038233,-212.95175033,0.00017889,2]
[407706613,1772697038244,-178.78,0.00017889,2]
[407706615,1772697038253,-500.0,0.00017889,2]
[407706617,1772697038263,-500.0,0.00017889,2]
[407706619,1772697038272,-500.0,0.00017889,2]
[407706621,1772697038283,-500.0,0.00017889,2]
[407706623,1772697038292,-500.0,0.00017889,2]
[407706625,1772697038302,-184.48,0.00017889,2]
[407706627,1772697038312,-500.0,0.00017889,2]
[407706630,1772697038321,-500.0,0.00017889,2]
[407706632,1772697038331,-500.0,0.00017889,2]
[407706634,1772697038340,-515.39068237,0.00017889,2]
[407706635,1772697038349,-500.0,0.00017889,2]
[407706637,1772697038359,-500.0,0.00017889,2]
[407706638,1772697038367,-500.0,0.00017889,2]
[407706640,1772697038377,-500.0,0.00017889,2]
[407706642,1772697038388,-500.0,0.00017889,2]
[407706644,1772697038397,-500.0,0.00017889,2]
[407706646,1772697038406,-500.0,0.00017889,2]
[407706648,1772697038416,-500.0,0.00017889,2]
[407706650,1772697038425,-500.0,0.00017889,2]
[407706652,1772697038434,-500.0,0.00017889,2]
[407706654,1772697038444,-637.51,0.00017889,2]
[407706656,1772697038453,-637.51,0.00017889,2]
[407706658,1772697038462,-637.51,0.00017889,2]
[407706660,1772697038472,-637.51,0.00017889,2]
[407706662,1772697038481,-637.51,0.00017889,2]
[407706664,1772697038490,-637.51,0.00017889,2]
[407706666,1772697038500,-637.51,0.00017889,2]
[407706668,1772697038509,-637.51,0.00017889,2]
[407706670,1772697038518,-637.51,0.00017889,2]
[407706672,1772697038527,-637.51,0.00017889,2]
[407706674,1772697038536,-500.0,0.00017889,2]
[407706676,1772697038545,-500.0,0.00017889,2]
[407706678,1772697038554,-500.0,0.00017889,2]
[407706679,1772697038563,-500.0,0.00017889,2]
[407706681,1772697038572,-500.0,0.00017889,2]
[407706684,1772697038582,-500.0,0.00017889,2]
[407706685,1772697038591,-333.28,0.00017889,2]
[407706687,1772697038600,-300.0,0.00017889,2]
[407706689,1772697038609,-300.0,0.00017889,2]
[407706691,1772697038619,-300.0,0.00017889,2]
[407706693,1772697038628,-666.0,0.00017889,2]
[407706695,1772697038639,-2992.48,0.0001789,2]
[407706697,1772697038648,-2992.48,0.0001789,2]
[407706699,1772697038657,-2992.48,0.0001789,2]
[407706701,1772697038667,-3752.68,0.0001789,2]
[407706702,1772697038676,-1320.31,0.00017951,2]
[407706704,1772697038686,-169.25,0.0001814,2]
[407706705,1772697038697,-178.78,0.00018163,2]
[407706706,1772697038706,-3240.0,0.00018192,2]
[407706707,1772697038717,-500.0,0.00018306,2]
[407706708,1772697038726,-500.0,0.00018405,2]
[407706709,1772697038735,-536.39251583,0.00018405,2]
[407706710,1772697038744,-500.0,0.00018405,2]
[407706711,1772697038754,-500.0,0.00018405,2]
[407706712,1772697038763,-500.0,0.00018405,2]
[407706713,1772697038772,-500.0,0.00018405,2]
[407706714,1772697038781,-500.0,0.00018405,2]
[407706715,1772697038790,-568.01,0.00018405,2]
[407706716,1772697038799,-500.0,0.00018405,2]
[407706717,1772697038808,-169.3,0.0001841,2]
[407706718,1772697038818,-178.80085002,0.00018437,2]
[407706719,1772697038827,-304.08,0.00018604,2]
[407706720,1772697038836,-2084.07521946,0.000187,2]
[407706721,1772697038846,-2500.0,0.000187,2]
[407706722,1772697038855,-250.0,0.000187,2]
[407706723,1772697038864,-2915.92478054,0.000187,2]
[407706724,1772697038873,-5000.0,0.000187,2]
[407706725,1772697038882,-5000.0,0.000187,2]
[407706726,1772697038892,-1000.0,0.00019137,2]
[407706727,1772697038902,-150.0,0.00019153,2]
[407706728,1772697038911,-261.38697017,0.0001925,2]
[407706729,1772697038920,-304.08,0.00019974,2]
[407706730,1772697038929,-1852.42,0.00020082,2]
[407706731,1772697038940,-2486.48369013,0.00020096,2]
[407706732,1772697038949,-549.62681041,0.00020167,2]
[407706733,1772697038959,-707.03,0.00020435,2]
[407706734,1772697038968,-2069.28898588,0.00020977,2]
[407706735,1772697038976,-983.09,0.00021068,2]
[407706736,1772697038986,-1000.0,0.00021263,2]
[407706737,1772697038995,-707.03,0.00021457,2]
[407706738,1772697039004,-707.03,0.00022479,2]
[407706739,1772697039014,-1500.0,0.00023288,2]
[407706740,1772697039023,-1000.0,0.0002339,2]
[407706741,1772697039032,-549.62681041,0.00023433,2]
[407706742,1772697039041,-707.03,0.000235,2]
[407706743,1772697039051,-180.29897544,0.00023616,2]
[407706744,1772697039061,-2069.28898588,0.00024164,2]
[407706745,1772697039070,-401.08765376,0.0002452,2]
[407706746,1772697039080,-707.03,0.00024522,2]
[407706747,1772697039090,-319.64608492,0.0002463,2]
[407706748,1772697039099,-2017.87050745,0.00024657,2]
[407706749,1772697039109,-150.0,0.00024658,2]
[407706750,1772697039118,-561.86792264,0.00024833,2]
[407706751,1772697039128,-307.90810153,0.00024899,10]
[407706752,1772697039139,-500.0,0.00024899,2]
[407706753,1772697039148,-500.0,0.00024899,2]
[407706754,1772697039158,-500.0,0.00024899,2]
[407706755,1772697039168,-300.0,0.00024899,10]
[407706756,1772697039178,-500.0,0.00024899,2]
[407706757,1772697039188,-637.51,0.00024899,2]
[407706758,1772697039199,-637.51,0.00024899,2]
[407706759,1772697039210,-637.51,0.00024899,2]
[407706760,1772697039220,-679.175262,0.000249,2]
[407706761,1772697039230,-16101.2600185,0.000249,2]
[407706762,1772697039243,-1000.0,0.00025516,2]
[407706763,1772697039252,-150.0,0.0002589,2]
[407706764,1772697039261,-1000.0,0.00026231,2]
[407706765,1772697039403,-549.62681041,0.000267,2]
[407706766,1772697039412,-150.0,0.00027185,2]
[407706767,1772697039422,-271.4385116,0.00027221,2]
[407706768,1772697039431,-2069.28898588,0.00027352,2]
[407706769,1772697039440,-500.0,0.00027395,2]
[407706770,1772697039449,-500.0,0.00027395,2]
[407706771,1772697039458,-500.0,0.00027395,2]
[407706772,1772697039467,-500.0,0.00027395,2]
[407706773,1772697039476,-500.0,0.00027395,2]
[407706774,1772697039486,-500.0,0.00027395,2]
[407706775,1772697039494,-500.0,0.00027395,2]
[407706776,1772697039503,-500.0,0.00027395,2]
[407706777,1772697039512,-500.0,0.00027395,2]
[407706778,1772697039521,-500.0,0.00027395,2]
[407706779,1772697039530,-250.0,0.00027397,9]
[407706780,1772697039539,-250.0,0.00027397,9]
[407706781,1772697039548,-250.0,0.00027397,9]
[407706782,1772697039557,-250.0,0.00027397,9]
[407706783,1772697039566,-250.0,0.00027397,9]
[407706784,1772697039575,-357.52,0.00027397,9]
[407706785,1772697039584,-9999.99,0.00027397,2]
[407706786,1772697039593,-706.91,0.00027397,2]
[407706787,1772697039602,-150.99,0.00027397,2]
[407706788,1772697039611,-999.99,0.00027397,2]
[407706789,1772697039620,-150.99,0.00027397,2]
[407706790,1772697039629,-160.41,0.000274,7]
[407706791,1772697039640,-1000.0,0.00027698,2]
[407706792,1772697039649,-1000.0,0.00027698,2]
[407706793,1772697039657,-840.73061527,0.00027698,2]
[407706794,1772697039666,-250.0,0.00027698,9]
[407706795,1772697039675,-273.0,0.00028066,120]
[407706796,1772697039685,-250.0,0.00028201,10]
[407706797,1772697039694,-250.0,0.00028475,11]
[407706798,1772697039703,-250.0,0.00028475,11]
[407706799,1772697039713,-150.0,0.00028544,2]
[407706800,1772697039722,-478.97,0.000286,7]
[407706801,1772697039731,-250.0,0.00028749,11]
[407706802,1772697039741,-250.0,0.00029023,12]
[407706803,1772697039750,-250.0,0.00029023,12]
[407706804,1772697039759,-300.0,0.00029279,10]
[407706805,1772697039768,-545.43138519,0.00029279,10]
[407706806,1772697039777,-60493.91047619,0.0002928,2]
[407706807,1772697039787,-250.0,0.00029297,13]
[407706808,1772697039796,-250.0,0.00029297,13]
[407706809,1772697039806,-273.0,0.00029469,120]
[407706810,1772697039815,-288.0328547,0.0002957,2]
[407706811,1772697039824,-200.0,0.00029571,2]
[407706812,1772697039833,-250.0,0.00029571,13]
[407706813,1772697039842,-200.0,0.00029867,2]
[407706814,1772697039852,-292.81,0.00029944,2]
[407706815,1772697039861,-549.62681041,0.00029967,2]
[407706816,1772697039870,-150.0,0.00029971,2]
[407706817,1772697039879,-192.38757779,0.00029973,120]
[407706818,1772697039889,-200.0,0.0003,2]
[407706819,1772697039898,-1310.0,0.000301,2]
[407706820,1772697039908,-203.0,0.00030137,30]
[407706821,1772697039917,-2069.28898588,0.00030539,2]
[407706822,1772697039928,-271.4385116,0.00030836,2]
[407706823,1772697039938,-273.0,0.00030942,120]
[407706824,1772697039947,-150.0,0.0003147,2]
[407706825,1772697039956,-273.0,0.00032489,120]
[407706826,1772697039966,-203.0,0.00033072,30]
[407706827,1772697039976,-549.62681041,0.00033233,2]
[407706828,1772697039987,-292.81,0.00033369,2]
[407706829,1772697039998,-250.0,0.00033445,2]
[407706830,1772697040008,-250.0,0.00033445,2]
[407706831,1772697040018,-250.0,0.00033445,2]
[407706832,1772697040027,-250.0,0.00033445,2]
[407706833,1772697040037,-250.0,0.00033445,2]
[407706834,1772697040046,-500.0,0.00033445,2]
[407706835,1772697040056,-250.0,0.00033445,2]
[407706836,1772697040065,-500.0,0.00033445,2]
[407706837,1772697040074,-250.0,0.00033445,2]
[407706838,1772697040083,-500.0,0.00033445,2]
[407706839,1772697040093,-250.0,0.00033445,2]
[407706840,1772697040102,-500.0,0.00033445,2]
[407706841,1772697040112,-255.91948243,0.00033445,2]
[407706842,1772697040121,-500.0,0.00033445,2]
[407706843,1772697040131,-500.0,0.00033445,2]
[407706844,1772697040142,-364.0000458,0.00033445,2]
[407706845,1772697040152,-151.0,0.00033445,2]
[407706846,1772697040161,-500.0,0.00033445,2]
[407706847,1772697040170,-500.0,0.00033445,2]
[407706848,1772697040179,-500.0,0.00033445,2]
[407706849,1772697040189,-693.3919763,0.00033445,2]
[407706850,1772697040199,-500.0,0.00033445,2]
[407706851,1772697040214,-500.0,0.00033445,2]
[407706852,1772697040224,-500.0,0.00033445,2]
[407706853,1772697040233,-500.0,0.00033445,2]
[407706854,1772697040242,-287.17297565,0.00033445,2]
[407706855,1772697040252,-151.0,0.000335,2]
[407706856,1772697040269,-719.04747942,0.000335,2]
[407706857,1772697040290,-151.0,0.00033555,2]
[407706858,1772697040310,-745.65223616,0.00033555,2]
[407706859,1772697040331,-773.2413689,0.0003361,2]
[407706860,1772697040345,-801.85129955,0.00033665,2]
[407706861,1772697040364,-831.51979763,0.0003372,2]
[407706862,1772697040385,-2069.28898588,0.00033726,2]
[407706863,1772697040404,-862.28603014,0.00033775,2]
[407706864,1772697040423,-1310.0,0.000338,2]
[407706865,1772697040441,-894.19061326,0.0003383,2]
[407706866,1772697040460,-927.27566595,0.00033885,2]
[407706867,1772697040475,-961.58486559,0.0003394,2]
[407706868,1772697040493,-997.16350561,0.00033995,2]
[407706869,1772697040506,-500.0,0.0003411,2]
[407706870,1772697040523,-273.0,0.00034114,120]
[407706871,1772697040536,-5000.0,0.00034217,2]
[407706872,1772697040551,-500.0,0.00034288,2]
[407706873,1772697040567,-163.67,0.00034288,2]
[407706874,1772697040586,-1500.0,0.00034288,120]
[407706875,1772697040601,-271.4385116,0.00034452,2]
[407706876,1772697040617,-300.0,0.00034595,2]
[407706877,1772697040632,-257.08,0.00034787,30]
[407706878,1772697040648,-196.32,0.00034787,30]
[407706879,1772697040663,-1066.03677286,0.00034795,2]
[407706880,1772697040679,-16315.02,0.00034943,2]
[407706881,1772697040695,-3359.0,0.00035,120]
[407706882,1772697040711,-166.66,0.00035243,2]
[407706883,1772697040727,-160.41,0.000353,14]
[407706884,1772697040744,-478.97,0.000355,14]
[407706885,1772697040759,-319.64608492,0.00035589,120]
[407706886,1772697040775,-273.0,0.00035819,120]
[407706887,1772697040791,-196.32,0.00035888,30]
[407706888,1772697040807,-203.0,0.00036008,30]
[407706889,1772697040823,-549.62681041,0.000365,2]
[407706890,1772697040838,-292.81,0.00036794,2]
[407706891,1772697040853,-257.08,0.00036806,30]
[407706892,1772697040869,-1000.0,0.00036901,2]
[407706893,1772697040884,-1053.98255691,0.00036901,2]
[407706894,1772697040900,-1000.0,0.00036901,2]
[407706895,1772697040915,-1946.01744309,0.00036901,2]
[407706896,1772697040930,-2069.28898588,0.00036913,2]
[407706897,1772697040946,-196.32,0.0003699,60]
[407706898,1772697040961,-230.92129225,0.000372,120]
[407706899,1772697040977,-230.92129222,0.000372,120]
[407706900,1772697040993,-230.92129222,0.000372,120]
[407706901,1772697041009,-273.0,0.0003761,120]
[407706902,1772697041025,-271.4385116,0.00038067,2]
[407706903,1772697041041,-196.32,0.00038091,60]
[407706904,1772697041057,-1117.62,0.00038374,2]
[407706905,1772697041072,-257.08,0.00038825,60]
[407706906,1772697041088,-203.0,0.00038943,30]
[407706907,1772697041103,-230.92129222,0.00039081,120]
[407706908,1772697041119,-196.32,0.00039192,60]
[407706909,1772697041136,-273.0,0.00039491,120]
[407706910,1772697041152,-3703.9,0.0003969,2]
[407706911,1772697041168,-549.62681041,0.00039767,2]
[407706912,1772697041184,-478.97,0.000399,14]
[407706913,1772697041200,-157.0,0.0004,120]
[407706914,1772697041218,-150.93,0.0004,2]
[407706915,1772697041234,-154.0,0.0004,120]
[407706916,1772697041251,-2069.28898588,0.00040101,15]
[407706917,1772697041267,-292.81,0.00040218,2]
[407706918,1772697041283,-1689.33,0.0004029,2]
[407706919,1772697041304,-196.32,0.00040293,60]
[407706920,1772697041321,-4000.0,0.00040618,2]
[407706921,1772697041337,-257.08,0.00040844,60]
[407706922,1772697041354,-152.0,0.00040873,3]
[407706923,1772697041370,-600.0,0.00041,30]
[407706924,1772697041388,-652.72380901,0.00041068,120]
[407706925,1772697041404,-258.7680076,0.00041096,10]
[407706926,1772697041422,-6497.0,0.00041232,7]
[407706927,1772697041438,-154.0,0.000413,120]
[407706928,1772697041456,-196.32,0.00041395,90]
[407706929,1772697041471,-273.0,0.00041466,120]
[407706930,1772697041487,-216.90002321,0.00041468,120]
[407706931,1772697041502,-637.51,0.00041631,120]
[407706932,1772697041517,-581.07389761,0.00041632,120]
[407706933,1772697041533,-533.92910556,0.00041632,120]
[407706934,1772697041549,-500.0,0.00041632,10]
[407706935,1772697041564,-568.01,0.00041632,120]
[407706936,1772697041579,-500.0,0.00041632,120]
[407706937,1772697041595,-4000.0,0.00041633,2]
[407706938,1772697041611,-157.0,0.000417,120]
[407706939,1772697041627,-203.0,0.00041879,120]
[407706940,1772697041827,-796.54,0.00041902,2]
[407706941,1772697041848,-344.0,0.00042,120]
[407706942,1772697041860,-680.0,0.00042,120]
[407706943,1772697041870,-307.0,0.00042,120]
[407706944,1772697041881,-307.0,0.00042,120]
[407706945,1772697041895,-307.0,0.00042,120]
[407706946,1772697041905,-307.0,0.00042,120]
[407706947,1772697041915,-307.0,0.00042,120]
[407706948,1772697041925,-307.0,0.00042,120]
[407706949,1772697041935,-307.0,0.00042,120]
[407706950,1772697041945,-307.0,0.00042,120]
[407706951,1772697041955,-307.0,0.00042,120]
[407706952,1772697041965,-307.0,0.00042,120]
[407706953,1772697041974,-306.0,0.00042,120]
[407706954,1772697041984,-306.0,0.00042,120]
[407706955,1772697041993,-306.0,0.00042,120]
[407706956,1772697042003,-306.0,0.00042,120]
[407706957,1772697042013,-306.0,0.00042,120]
[407706958,1772697042023,-306.0,0.00042,120]
[407706959,1772697042032,-306.0,0.00042,120]
[407706960,1772697042042,-306.0,0.00042,120]
[407706961,1772697042051,-306.0,0.00042,120]
[407706962,1772697042061,-500.0,0.00042,120]
[407706963,1772697042071,-168.0,0.00042119,2]
[407706964,1772697042080,-1048.50100127,0.00042192,2]
[407706965,1772697042089,-306.61635286,0.00042192,2]
[407706966,1772697042098,-856.13486002,0.00042192,2]
[407706967,1772697042108,-306.8296831,0.00042192,2]
[407706968,1772697042118,-300.0,0.00042192,2]
[407706969,1772697042127,-300.0,0.00042192,2]
[407706970,1772697042139,-1084.19175733,0.00042192,2]
[407706971,1772697042149,-300.0,0.00042192,2]
[407706972,1772697042159,-300.0,0.00042192,2]
[407706973,1772697042169,-300.78628592,0.00042192,2]
[407706974,1772697042178,-1048.50100127,0.00042192,2]
[407706975,1772697042187,-409.10557655,0.00042192,2]
[407706976,1772697042197,-848.93095948,0.00042192,2]
[407706977,1772697042208,-861.22556341,0.00042192,2]
[407706978,1772697042218,-300.0,0.00042192,2]
[407706979,1772697042228,-300.0,0.00042192,2]
[407706980,1772697042241,-300.0,0.00042192,2]
[407706981,1772697042253,-514.10634077,0.00042192,2]
[407706982,1772697042263,-300.0,0.00042192,2]
[407706983,1772697042272,-300.0,0.00042192,2]
[407706984,1772697042282,-300.0,0.00042192,2]
[407706985,1772697042291,-300.0,0.00042192,2]
[407706986,1772697042301,-500.0,0.00042438,120]
[407706987,1772697042311,-500.0,0.00042438,120]
[407706988,1772697042322,-196.32,0.00042496,90]
[407706989,1772697042331,-500.0,0.000425,120]
[407706990,1772697042341,-4999.40510104,0.000425,120]
[407706991,1772697042350,-500.0,0.00042575,120]
[407706992,1772697042359,-500.0,0.00042575,120]
[407706993,1772697042370,-201.129682,0.000426,23]
[407706994,1772697042381,-154.0,0.000426,120]
[407706995,1772697042392,-4000.0,0.00042649,2]
[407706996,1772697042401,-500.0,0.00042712,120]
[407706997,1772697042411,-500.0,0.00042712,120]
[407706998,1772697042421,-745.623,0.00042756,2]
[407706999,1772697042431,-3501.0,0.00042756,2]
[407707000,1772697042440,-1341.0,0.00042756,2]
[407707001,1772697042450,-1041.0,0.00042756,2]
[407707002,1772697042461,-270.0,0.00042756,2]
[407707003,1772697042470,-216.0,0.00042756,2]
[407707004,1772697042480,-3769.481,0.00042756,2]
[407707005,1772697042489,-150.648,0.00042756,2]
[407707006,1772697042498,-150.68,0.00042756,2]
[407707007,1772697042508,-5989.0,0.00042756,2]
[407707008,1772697042518,-500.0,0.00042849,120]
[407707009,1772697042528,-500.0,0.00042849,120]
[407707010,1772697042537,-257.08,0.00042863,90]
[407707011,1772697042547,-173.54,0.000429,60]
[407707013,1772697042557,-500.0,0.00042986,120]
[407707014,1772697042571,-500.0,0.00042986,120]
[407707015,1772697042593,-245.13107206,0.00043,120]
[407707016,1772697042606,-500.0,0.00043,120]
[407707017,1772697042615,-549.62681041,0.00043033,15]
[407707018,1772697042625,-250.0,0.00043068,120]
[407707019,1772697042635,-250.0,0.00043068,120]
[407707020,1772697042645,-250.0,0.00043068,120]
[407707021,1772697042654,-250.0,0.00043068,120]
[407707022,1772697042664,-250.0,0.00043068,120]
[407707023,1772697042674,-250.0,0.00043068,120]
[407707024,1772697042686,-1000.0,0.000431,120]
[407707025,1772697042696,-500.0,0.00043123,120]
[407707026,1772697042706,-500.0,0.00043123,120]
[407707027,1772697042717,-500.0,0.0004326,120]
[407707028,1772697042727,-500.0,0.0004326,120]
[407707029,1772697042737,-168.0,0.00043286,2]
[407707030,1772697042747,-2069.28898588,0.00043288,15]
[407707031,1772697042756,-500.0,0.00043397,120]
[407707032,1772697042766,-500.0,0.00043397,120]
[407707033,1772697042777,-157.0,0.000434,120]
[407707034,1772697042786,-500.0,0.000435,120]
[407707035,1772697042796,-500.0,0.00043534,120]
[407707036,1772697042807,-431.39303726,0.00043534,120]
[407707037,1772697042818,-273.0,0.00043539,120]
[407707038,1772697042828,-196.32,0.00043597,90]
[407707039,1772697042838,-602.0,0.00043657,2]
[407707040,1772697042849,-150.0,0.00043657,2]
[407707041,1772697042858,-150.0,0.00043657,2]
[407707042,1772697042867,-150.0,0.00043657,2]
[407707043,1772697042878,-150.0,0.00043657,2]
[407707044,1772697042887,-150.0,0.00043657,2]
[407707045,1772697042896,-224.0,0.00043657,2]
[407707046,1772697042905,-4000.0,0.00043664,2]
[407707047,1772697042914,-635.21163987,0.00043671,120]
[407707048,1772697042926,-1000.0,0.000438,30]
[407707049,1772697042937,-386.19804163,0.00043808,120]
[407707050,1772697042947,-164.80367716,0.00043836,5]
[407707051,1772697042958,-300.0,0.00044,120]
[407707052,1772697042977,-500.0,0.00044,120]
[407707053,1772697042986,-154.0,0.00044,120]
[407707054,1772697042995,-152.0,0.00044059,4]
[407707055,1772697043004,-168.0,0.00044067,2]
[407707056,1772697043014,-1000.0,0.000441,120]
[407707057,1772697043025,-160.76,0.00044161,120]
[407707058,1772697043046,-150.47,0.00044161,120]
[407707059,1772697043065,-176.07,0.00044161,120]
[407707060,1772697043078,-152.63,0.00044162,120]
[407707061,1772697043088,-1112.43137968,0.00044183,120]
[407707062,1772697043098,-216.90002321,0.00044208,120]
[407707063,1772697043108,-160.76,0.00044261,120]
[407707064,1772697043117,-150.47,0.00044261,120]
[407707065,1772697043127,-176.07,0.00044261,120]
[407707066,1772697043137,-152.63,0.00044262,120]
[407707067,1772697043147,-1000.0,0.00044288,14]
[407707068,1772697043156,-160.76,0.00044361,120]
[407707069,1772697043165,-150.47,0.00044361,120]
[407707070,1772697043175,-176.07,0.00044361,120]
[407707071,1772697043184,-152.63,0.00044362,120]
[407707072,1772697043193,-1000.0,0.00044459,14]
[407707073,1772697043204,-150.47,0.00044461,120]
[407707074,1772697043213,-176.07,0.00044461,120]
[407707075,1772697043222,-152.63,0.00044462,120]
[407707076,1772697043234,-168.0,0.00044494,2]
[407707077,1772697043243,-478.97,0.000445,14]
[407707078,1772697043252,-500.0,0.000445,120]
[407707079,1772697043262,-1000.0,0.00044559,14]
[407707080,1772697043271,-150.47,0.00044561,120]
[407707081,1772697043280,-176.07,0.00044561,120]
[407707082,1772697043290,-150.0,0.00044561,120]
[407707083,1772697043300,-152.63,0.00044562,120]